[Event "January 2 Late 2024"]
[Site "https://www.chess.com"]
[Date "2024.01.02"]
[Round "4"]
[White "Petre, Nad-Titus"]
[Black "Han, Yichen"]
[Result "0-1"]
[Board "81"]
[TimeControl "180+1"]
[WhiteFideId "1204165"]
[BlackFideId "1054430"]
[WhiteElo "2479"]
[BlackElo "2695"]
[WhiteTeam "ROU"]
[BlackTeam "NED"]
[WhiteClock "0:00:14"]
[BlackClock "0:00:36"]

1. Nf3 {[%clk 0:03:00]}  d5 {[%clk 0:02:59]} 2. g3 {[%clk 0:03:01]}  Bg4 {[%clk 0:02:56]} 3. Bg2 {[%clk 0:03:00]}  Nd7 {[%clk 0:02:56]} 4. d4 {[%clk 0:03:01]}  Ngf6 {[%clk 0:02:55]} 5. O-O {[%clk 0:02:59]}  e6 {[%clk 0:02:54]} 6. c4 {[%clk 0:02:59]}  c6 {[%clk 0:02:53]} 7. Qb3 {[%clk 0:02:54]}  Qb6 {[%clk 0:02:42]} 8. Nc3 {[%clk 0:02:52]}  Be7 {[%clk 0:02:27]} 9. c5 {[%clk 0:02:50]}  Qa6 {[%clk 0:02:21]} 10. Re1 {[%clk 0:02:50]}  O-O {[%clk 0:02:17]} 11. e4 {[%clk 0:02:46]}  dxe4 {[%clk 0:02:14]} 12. Nxe4 {[%clk 0:02:46]}  Nxe4 {[%clk 0:02:14]} 13. Rxe4 {[%clk 0:02:47]}  Bf5 {[%clk 0:02:14]} 14. Re1 {[%clk 0:02:35]}  b6 {[%clk 0:02:07]} 15. Nh4 {[%clk 0:02:25]}  Bxh4 {[%clk 0:02:04]} 16. Bxc6 {[%clk 0:02:14]}  Rad8 {[%clk 0:01:47]} 17. gxh4 {[%clk 0:02:01]}  bxc5 {[%clk 0:01:45]} 18. Bxd7 {[%clk 0:01:52]}  Rxd7 {[%clk 0:01:46]} 19. dxc5 {[%clk 0:01:52]}  Rd4 {[%clk 0:01:40]} 20. f3 {[%clk 0:01:15]}  Rd3 {[%clk 0:01:25]} 21. Qb4 {[%clk 0:01:05]}  Rxf3 {[%clk 0:01:20]} 22. Bf4 {[%clk 0:01:05]}  Qc6 {[%clk 0:01:13]} 23. Bd6 {[%clk 0:00:57]}  Rc8 {[%clk 0:01:08]} 24. Rad1 {[%clk 0:00:51]}  Bh3 {[%clk 0:01:06]} 25. Rd2 {[%clk 0:00:41]}  Rf6 {[%clk 0:00:54]} 26. h5 {[%clk 0:00:17]}  Qf3 {[%clk 0:00:39]} 27. Qc3 {[%clk 0:00:14]}  Qf1+ {[%clk 0:00:36]} 0-1

[Event "January 2 Late 2024"]
[Site "https://www.chess.com"]
[Date "2024.01.02"]
[Round "4"]
[White "Khatoev, Eduard"]
[Black "Sowa, Ryan"]
[Result "1/2-1/2"]
[Board "84"]
[TimeControl "180+1"]
[WhiteFideId "24145076"]
[BlackFideId "30901693"]
[WhiteElo "2684"]
[BlackElo "2616"]
[WhiteTeam "RUS"]
[BlackTeam "USA"]
[WhiteClock "0:00:07"]
[BlackClock "0:00:21"]

1. Nf3 {[%clk 0:03:00]}  b6 {[%clk 0:03:00]} 2. e3 {[%clk 0:03:00]}  Bb7 {[%clk 0:03:01]} 3. b3 {[%clk 0:03:00]}  Nf6 {[%clk 0:03:01]} 4. Nc3 {[%clk 0:03:00]}  g6 {[%clk 0:03:01]} 5. d4 {[%clk 0:02:59]}  Bg7 {[%clk 0:03:02]} 6. Be2 {[%clk 0:02:59]}  O-O {[%clk 0:03:02]} 7. O-O {[%clk 0:02:59]}  d6 {[%clk 0:03:02]} 8. Ba3 {[%clk 0:02:57]}  c5 {[%clk 0:03:01]} 9. Bb2 {[%clk 0:02:57]}  Nbd7 {[%clk 0:03:01]} 10. Qd3 {[%clk 0:02:57]}  Qc7 {[%clk 0:02:52]} 11. d5 {[%clk 0:02:56]}  a6 {[%clk 0:02:51]} 12. a4 {[%clk 0:02:52]}  Ng4 {[%clk 0:02:43]} 13. h3 {[%clk 0:02:48]}  Nge5 {[%clk 0:02:43]} 14. Nxe5 {[%clk 0:02:47]}  Nxe5 {[%clk 0:02:44]} 15. Qd2 {[%clk 0:02:46]}  Nd7 {[%clk 0:02:39]} 16. f4 {[%clk 0:02:42]}  Nf6 {[%clk 0:02:27]} 17. Rad1 {[%clk 0:02:37]}  Rad8 {[%clk 0:02:19]} 18. g4 {[%clk 0:02:34]}  e6 {[%clk 0:02:18]} 19. dxe6 {[%clk 0:02:29]}  fxe6 {[%clk 0:02:19]} 20. g5 {[%clk 0:02:28]}  Ne4 {[%clk 0:02:13]} 21. Nxe4 {[%clk 0:02:27]}  Bxb2 {[%clk 0:02:05]} 22. Nxd6 {[%clk 0:02:27]}  Bd5 {[%clk 0:02:05]} 23. c4 {[%clk 0:02:26]}  Bg7 {[%clk 0:01:57]} 24. cxd5 {[%clk 0:02:26]}  Rxd6 {[%clk 0:01:57]} 25. Bxa6 {[%clk 0:02:24]}  exd5 {[%clk 0:01:57]} 26. Bd3 {[%clk 0:02:18]}  d4 {[%clk 0:01:57]} 27. e4 {[%clk 0:02:17]}  Kh8 {[%clk 0:01:54]} 28. Rf2 {[%clk 0:02:15]}  Rdd8 {[%clk 0:01:50]} 29. Bc4 {[%clk 0:02:13]}  Rde8 {[%clk 0:01:49]} 30. e5 {[%clk 0:02:12]}  h6 {[%clk 0:01:45]} 31. Qc2 {[%clk 0:02:07]}  Kh7 {[%clk 0:01:39]} 32. Rxd4 {[%clk 0:00:34]}  hxg5 {[%clk 0:01:31]} 33. Rd6 {[%clk 0:00:33]}  Rf5 {[%clk 0:01:15]} 34. Bd3 {[%clk 0:00:31]}  Ref8 {[%clk 0:01:14]} 35. Bxf5 {[%clk 0:00:31]}  Rxf5 {[%clk 0:01:15]} 36. Rg2 {[%clk 0:00:30]}  Qe7 {[%clk 0:01:03]} 37. h4 {[%clk 0:00:29]}  Bxe5 {[%clk 0:00:42]} 38. fxe5 {[%clk 0:00:19]}  Qxe5 {[%clk 0:00:43]} 39. Rd7+ {[%clk 0:00:17]}  Kg8 {[%clk 0:00:39]} 40. Qc4+ {[%clk 0:00:16]}  Kf8 {[%clk 0:00:40]} 41. Rd8+ {[%clk 0:00:16]}  Ke7 {[%clk 0:00:39]} 42. Re2 {[%clk 0:00:10]}  Kxd8 {[%clk 0:00:34]} 43. Qg8+ {[%clk 0:00:10]}  Kc7 {[%clk 0:00:31]} 44. Rxe5 {[%clk 0:00:10]}  Rxe5 {[%clk 0:00:32]} 45. Qg7+ {[%clk 0:00:10]}  Kd6 {[%clk 0:00:32]} 46. Qf6+ {[%clk 0:00:11]}  Kd5 {[%clk 0:00:32]} 47. Qf7+ {[%clk 0:00:11]}  Ke4 {[%clk 0:00:32]} 48. Qb7+ {[%clk 0:00:10]}  Kf4 {[%clk 0:00:32]} 49. Qf7+ {[%clk 0:00:10]}  Rf5 {[%clk 0:00:32]} 50. Qc7+ {[%clk 0:00:09]}  Kg4 {[%clk 0:00:32]} 51. Qc6 {[%clk 0:00:06]}  gxh4 {[%clk 0:00:25]} 52. Qg2+ {[%clk 0:00:07]}  Kh5 {[%clk 0:00:24]} 53. Qe2+ {[%clk 0:00:07]}  Kh6 {[%clk 0:00:21]} 54. Qe3+ {[%clk 0:00:07]}  Kh5 {[%clk 0:00:20]} 55. Qe2+ {[%clk 0:00:07]}  Kh6 {[%clk 0:00:21]} 56. Qe3+ {[%clk 0:00:07]}  Kh5 {[%clk 0:00:21]} 57. Qe2+ {[%clk 0:00:07]} 1/2-1/2

[Event "January 2 Late 2024"]
[Site "https://www.chess.com"]
[Date "2024.01.02"]
[Round "4"]
[White "Sztokbant, Bernardo Vainzoff"]
[Black "Tanriverdi, Enes"]
[Result "0-1"]
[Board "85"]
[TimeControl "180+1"]
[WhiteFideId "2115956"]
[BlackFideId "34543279"]
[WhiteElo "2468"]
[BlackElo "2683"]
[WhiteTeam "BRA"]
[BlackTeam "TUR"]
[WhiteClock "0:00:00"]
[BlackClock "0:00:09"]

1. d4 {[%clk 0:02:55]}  Nf6 {[%clk 0:02:59]} 2. c4 {[%clk 0:02:56]}  e6 {[%clk 0:02:59]} 3. Nf3 {[%clk 0:02:55]}  b6 {[%clk 0:02:59]} 4. g3 {[%clk 0:02:56]}  Ba6 {[%clk 0:02:59]} 5. Qc2 {[%clk 0:02:56]}  c5 {[%clk 0:02:57]} 6. Bg2 {[%clk 0:02:56]}  Bb7 {[%clk 0:02:57]} 7. O-O {[%clk 0:02:54]}  cxd4 {[%clk 0:02:57]} 8. Nxd4 {[%clk 0:02:54]}  Bxg2 {[%clk 0:02:57]} 9. Kxg2 {[%clk 0:02:55]}  Qc8 {[%clk 0:02:56]} 10. b3 {[%clk 0:02:51]}  Be7 {[%clk 0:02:50]} 11. Nc3 {[%clk 0:02:49]}  Qb7+ {[%clk 0:02:50]} 12. Kg1 {[%clk 0:02:49]}  O-O {[%clk 0:02:49]} 13. Bf4 {[%clk 0:02:49]}  Rc8 {[%clk 0:02:49]} 14. Qd3 {[%clk 0:02:39]}  Na6 {[%clk 0:02:37]} 15. Rfd1 {[%clk 0:02:34]}  Nc5 {[%clk 0:02:36]} 16. Qf3 {[%clk 0:02:34]}  Qxf3 {[%clk 0:02:30]} 17. Nxf3 {[%clk 0:02:35]}  h6 {[%clk 0:02:27]} 18. Rac1 {[%clk 0:02:18]}  a6 {[%clk 0:02:18]} 19. Kg2 {[%clk 0:02:17]}  Kf8 {[%clk 0:02:03]} 20. Ne1 {[%clk 0:02:10]}  Ke8 {[%clk 0:01:56]} 21. Nd3 {[%clk 0:02:06]}  Nxd3 {[%clk 0:01:45]} 22. Rxd3 {[%clk 0:02:07]}  b5 {[%clk 0:01:42]} 23. cxb5 {[%clk 0:01:56]}  axb5 {[%clk 0:01:41]} 24. Nxb5 {[%clk 0:01:55]}  Rxc1 {[%clk 0:01:40]} 25. Bxc1 {[%clk 0:01:55]}  Rxa2 {[%clk 0:01:41]} 26. Kf3 {[%clk 0:01:55]}  d5 {[%clk 0:01:38]} 27. Rc3 {[%clk 0:01:49]}  e5 {[%clk 0:01:29]} 28. Rc8+ {[%clk 0:01:30]}  Kd7 {[%clk 0:01:27]} 29. Rc7+ {[%clk 0:01:31]}  Ke6 {[%clk 0:01:24]} 30. Nc3 {[%clk 0:01:20]}  Rc2 {[%clk 0:01:19]} 31. Nxd5 {[%clk 0:01:11]}  Rxc1 {[%clk 0:00:59]} 32. Rxc1 {[%clk 0:01:07]}  Nxd5 {[%clk 0:00:52]} 33. e4 {[%clk 0:00:51]}  Nb4 {[%clk 0:00:52]} 34. Rc7 {[%clk 0:00:42]}  g6 {[%clk 0:00:50]} 35. Rb7 {[%clk 0:00:35]}  f5 {[%clk 0:00:49]} 36. Rb6+ {[%clk 0:00:29]}  Bd6 {[%clk 0:00:49]} 37. Rb7 {[%clk 0:00:25]}  Nc2 {[%clk 0:00:43]} 38. exf5+ {[%clk 0:00:20]}  Kxf5 {[%clk 0:00:32]} 39. g4+ {[%clk 0:00:17]}  Ke6 {[%clk 0:00:25]} 40. Ke4 {[%clk 0:00:16]}  Nb4 {[%clk 0:00:16]} 41. Rh7 {[%clk 0:00:16]}  Nd5 {[%clk 0:00:14]} 42. Rxh6 {[%clk 0:00:16]}  Nf6+ {[%clk 0:00:14]} 43. Kf3 {[%clk 0:00:15]}  e4+ {[%clk 0:00:14]} 44. Ke2 {[%clk 0:00:13]}  Kf7 {[%clk 0:00:14]} 45. Rh8 {[%clk 0:00:11]}  Nxg4 {[%clk 0:00:14]} 46. h3 {[%clk 0:00:10]}  Nf6 {[%clk 0:00:14]} 47. Rc8 {[%clk 0:00:10]}  Ke6 {[%clk 0:00:14]} 48. Ra8 {[%clk 0:00:07]}  Nd5 {[%clk 0:00:14]} 49. Re8+ {[%clk 0:00:06]}  Kf5 {[%clk 0:00:13]} 50. Rd8 {[%clk 0:00:05]}  Ke5 {[%clk 0:00:12]} 51. Re8+ {[%clk 0:00:05]}  Be7 {[%clk 0:00:13]} 52. Rg8 {[%clk 0:00:04]}  Kf5 {[%clk 0:00:10]} 53. Kf1 {[%clk 0:00:03]}  Bf6 {[%clk 0:00:10]} 54. Rc8 {[%clk 0:00:02]}  g5 {[%clk 0:00:11]} 55. Rc5 {[%clk 0:00:02]}  Ke5 {[%clk 0:00:11]} 56. Rb5 {[%clk 0:00:02]}  Kd4 {[%clk 0:00:11]} 57. Rb7 {[%clk 0:00:02]}  Nf4 {[%clk 0:00:11]} 58. Rh7 {[%clk 0:00:01]}  Kc3 {[%clk 0:00:10]} 59. Rh6 {[%clk 0:00:01]}  Bd4 {[%clk 0:00:09]} 60. Rd6 {[%clk 0:00:00]}  Be5 {[%clk 0:00:09]} 0-1

[Event "January 2 Late 2024"]
[Site "https://www.chess.com"]
[Date "2024.01.02"]
[Round "4"]
[White "Morales Garcia, Sergio Joshafatt"]
[Black "Schmakel, Sam"]
[Result "0-1"]
[Board "86"]
[TimeControl "180+1"]
[WhiteFideId "5106249"]
[BlackFideId "2039311"]
[WhiteElo "2446"]
[BlackElo "2678"]
[WhiteTeam "MEX"]
[BlackTeam "USA"]
[WhiteClock "0:00:00"]
[BlackClock "0:00:26"]

1. d4 {[%clk 0:03:00]}  Nf6 {[%clk 0:02:58]} 2. c4 {[%clk 0:03:01]}  e6 {[%clk 0:02:58]} 3. Nf3 {[%clk 0:03:01]}  d5 {[%clk 0:02:58]} 4. Nc3 {[%clk 0:03:02]}  dxc4 {[%clk 0:02:57]} 5. e4 {[%clk 0:03:00]}  Bb4 {[%clk 0:02:57]} 6. Bg5 {[%clk 0:02:59]}  c5 {[%clk 0:02:56]} 7. Bxc4 {[%clk 0:02:59]}  cxd4 {[%clk 0:02:57]} 8. Nxd4 {[%clk 0:03:00]}  Bxc3+ {[%clk 0:02:57]} 9. bxc3 {[%clk 0:03:00]}  Qa5 {[%clk 0:02:58]} 10. Bxf6 {[%clk 0:02:59]}  Qxc3+ {[%clk 0:02:57]} 11. Kf1 {[%clk 0:02:59]}  gxf6 {[%clk 0:02:58]} 12. Rc1 {[%clk 0:02:59]}  Qa5 {[%clk 0:02:52]} 13. Qg4 {[%clk 0:02:58]}  Ke7 {[%clk 0:02:37]} 14. h4 {[%clk 0:02:19]}  Bd7 {[%clk 0:02:13]} 15. Qg7 {[%clk 0:01:35]}  Nc6 {[%clk 0:02:03]} 16. Nf5+ {[%clk 0:01:14]}  exf5 {[%clk 0:02:04]} 17. Bxf7 {[%clk 0:00:50]}  Raf8 {[%clk 0:00:40]} 18. Rd1 {[%clk 0:00:19]}  Ne5 {[%clk 0:00:36]} 19. Bb3+ {[%clk 0:00:08]}  Kd8 {[%clk 0:00:36]} 20. Rh3 {[%clk 0:00:04]}  Kc8 {[%clk 0:00:31]} 21. Kg1 {[%clk 0:00:00]}  fxe4 {[%clk 0:00:26]} 0-1

[Event "January 2 Late 2024"]
[Site "https://www.chess.com"]
[Date "2024.01.02"]
[Round "4"]
[White "Musalov, Ruslan"]
[Black "Riff, Vincent"]
[Result "0-1"]
[Board "87"]
[TimeControl "180+1"]
[WhiteFideId "4141490"]
[BlackFideId "617776"]
[WhiteElo "2438"]
[BlackElo "2677"]
[WhiteTeam "RUS"]
[BlackTeam "FRA"]
[WhiteClock "0:00:02"]
[BlackClock "0:01:24"]

1. e4 {[%clk 0:03:00]}  c5 {[%clk 0:02:59]} 2. Nf3 {[%clk 0:03:01]}  Nc6 {[%clk 0:03:00]} 3. d4 {[%clk 0:03:01]}  cxd4 {[%clk 0:03:01]} 4. Nxd4 {[%clk 0:03:02]}  e5 {[%clk 0:03:01]} 5. Nb5 {[%clk 0:03:01]}  d6 {[%clk 0:03:00]} 6. N1c3 {[%clk 0:03:00]}  a6 {[%clk 0:03:00]} 7. Na3 {[%clk 0:03:00]}  b5 {[%clk 0:03:01]} 8. Nd5 {[%clk 0:03:00]}  Nge7 {[%clk 0:03:01]} 9. c4 {[%clk 0:02:56]}  Nd4 {[%clk 0:03:01]} 10. cxb5 {[%clk 0:02:55]}  Nxd5 {[%clk 0:03:00]} 11. exd5 {[%clk 0:02:54]}  Be7 {[%clk 0:03:00]} 12. Bd3 {[%clk 0:02:53]}  O-O {[%clk 0:03:00]} 13. O-O {[%clk 0:02:54]}  f5 {[%clk 0:03:00]} 14. bxa6 {[%clk 0:02:54]}  Bf6 {[%clk 0:02:59]} 15. Be3 {[%clk 0:02:50]}  e4 {[%clk 0:02:59]} 16. Bc4 {[%clk 0:02:46]}  Nf3+ {[%clk 0:02:57]} 17. gxf3 {[%clk 0:02:45]}  Bxb2 {[%clk 0:02:58]} 18. Nc2 {[%clk 0:02:39]}  Bxa1 {[%clk 0:02:48]} 19. Nxa1 {[%clk 0:02:38]}  f4 {[%clk 0:02:46]} 20. Bd4 {[%clk 0:02:32]}  Bh3 {[%clk 0:02:45]} 21. Kh1 {[%clk 0:02:23]}  Bxf1 {[%clk 0:02:44]} 22. Qxf1 {[%clk 0:02:24]}  exf3 {[%clk 0:02:38]} 23. Nb3 {[%clk 0:02:24]}  Qg5 {[%clk 0:02:36]} 24. Qg1 {[%clk 0:02:20]}  Qxg1+ {[%clk 0:02:30]} 25. Kxg1 {[%clk 0:02:21]}  Rfc8 {[%clk 0:02:29]} 26. Bd3 {[%clk 0:02:11]}  g5 {[%clk 0:02:22]} 27. a7 {[%clk 0:02:04]}  Rc7 {[%clk 0:02:19]} 28. a4 {[%clk 0:01:53]}  Rb7 {[%clk 0:02:16]} 29. Bb5 {[%clk 0:01:52]}  Kf7 {[%clk 0:02:07]} 30. h4 {[%clk 0:01:46]}  h6 {[%clk 0:02:07]} 31. Bc6 {[%clk 0:01:34]}  Raxa7 {[%clk 0:01:49]} 32. Bxa7 {[%clk 0:01:33]}  Rxb3 {[%clk 0:01:44]} 33. a5 {[%clk 0:01:23]}  g4 {[%clk 0:01:45]} 34. Kh2 {[%clk 0:00:42]}  Rb2 {[%clk 0:01:43]} 35. Bd4 {[%clk 0:00:05]}  Ra2 {[%clk 0:01:36]} 36. a6 {[%clk 0:00:01]}  g3+ {[%clk 0:01:32]} 37. Kh3 {[%clk 0:00:01]}  g2 {[%clk 0:01:29]} 38. a7 {[%clk 0:00:01]}  g1=Q {[%clk 0:01:27]} 39. a8=Q {[%clk 0:00:01]}  Rxa8 {[%clk 0:01:25]} 40. Bxa8 {[%clk 0:00:02]}  Qg2# {[%clk 0:01:24]} 0-1

[Event "January 2 Late 2024"]
[Site "https://www.chess.com"]
[Date "2024.01.02"]
[Round "4"]
[White "Annaberdiyev, Meylis"]
[Black "Gabdushev, Ruslan"]
[Result "1-0"]
[Board "88"]
[TimeControl "180+1"]
[WhiteFideId "14000563"]
[BlackFideId "4137833"]
[WhiteElo "2677"]
[BlackElo "2436"]
[WhiteTeam "TKM"]
[BlackTeam "RUS"]
[WhiteClock "0:00:16"]
[BlackClock "0:00:00"]

1. e4 {[%clk 0:03:00]}  Nc6 {[%clk 0:02:59]} 2. Nf3 {[%clk 0:03:00]}  d6 {[%clk 0:02:58]} 3. d4 {[%clk 0:02:58]}  Nf6 {[%clk 0:02:58]} 4. d5 {[%clk 0:02:55]}  Nb8 {[%clk 0:02:56]} 5. Nc3 {[%clk 0:02:54]}  Bg4 {[%clk 0:02:53]} 6. Be2 {[%clk 0:02:52]}  Bxf3 {[%clk 0:02:52]} 7. gxf3 {[%clk 0:02:48]}  g6 {[%clk 0:02:51]} 8. f4 {[%clk 0:02:46]}  Nbd7 {[%clk 0:02:51]} 9. h4 {[%clk 0:02:45]}  c6 {[%clk 0:02:48]} 10. h5 {[%clk 0:02:37]}  Bg7 {[%clk 0:02:40]} 11. h6 {[%clk 0:02:30]}  Bf8 {[%clk 0:02:40]} 12. Be3 {[%clk 0:02:31]}  Qa5 {[%clk 0:02:31]} 13. Qd2 {[%clk 0:02:30]}  cxd5 {[%clk 0:02:29]} 14. exd5 {[%clk 0:02:30]}  e6 {[%clk 0:02:20]} 15. Bd4 {[%clk 0:02:23]}  e5 {[%clk 0:02:12]} 16. Be3 {[%clk 0:02:19]}  Be7 {[%clk 0:02:10]} 17. fxe5 {[%clk 0:01:58]}  dxe5 {[%clk 0:02:03]} 18. d6 {[%clk 0:01:55]}  Bd8 {[%clk 0:02:03]} 19. O-O-O {[%clk 0:01:48]}  a6 {[%clk 0:01:56]} 20. Kb1 {[%clk 0:01:47]}  O-O {[%clk 0:01:52]} 21. Bf3 {[%clk 0:01:44]}  Bb6 {[%clk 0:01:34]} 22. Nd5 {[%clk 0:01:17]}  Qxd2 {[%clk 0:01:18]} 23. Ne7+ {[%clk 0:01:16]}  Kh8 {[%clk 0:01:18]} 24. Bxd2 {[%clk 0:01:16]}  Rab8 {[%clk 0:00:37]} 25. Bc3 {[%clk 0:01:16]}  Bxf2 {[%clk 0:00:32]} 26. Rhf1 {[%clk 0:01:11]}  Be3 {[%clk 0:00:31]} 27. Rh1 {[%clk 0:01:05]}  Ne8 {[%clk 0:00:24]} 28. a4 {[%clk 0:00:31]}  Bc5 {[%clk 0:00:21]} 29. Rhe1 {[%clk 0:00:23]}  f6 {[%clk 0:00:20]} 30. Bg4 {[%clk 0:00:18]}  f5 {[%clk 0:00:19]} 31. Rxe5 {[%clk 0:00:18]}  Nef6 {[%clk 0:00:14]} 32. Bh3 {[%clk 0:00:15]}  Nxe5 {[%clk 0:00:13]} 33. Bxe5 {[%clk 0:00:16]}  Rf7 {[%clk 0:00:12]} 34. Nd5 {[%clk 0:00:15]}  Rbf8 {[%clk 0:00:08]} 35. Nxf6 {[%clk 0:00:15]}  Rxf6 {[%clk 0:00:08]} 36. Bxf6+ {[%clk 0:00:15]}  Rxf6 {[%clk 0:00:00]} 37. d7 {[%clk 0:00:16]} 1-0

[Event "January 2 Late 2024"]
[Site "https://www.chess.com"]
[Date "2024.01.02"]
[Round "4"]
[White "Ramos Rivera, Jesse James"]
[Black "Sevgi, Volkan"]
[Result "0-1"]
[Board "89"]
[TimeControl "180+1"]
[WhiteFideId "3103250"]
[BlackFideId "6325335"]
[WhiteElo "2434"]
[BlackElo "2676"]
[WhiteTeam "PUR"]
[BlackTeam "TUR"]
[WhiteClock "0:00:00"]
[BlackClock "0:00:13"]

1. e4 {[%clk 0:02:56]}  c6 {[%clk 0:02:59]} 2. d4 {[%clk 0:02:55]}  d5 {[%clk 0:03:00]} 3. exd5 {[%clk 0:02:51]}  cxd5 {[%clk 0:02:59]} 4. c4 {[%clk 0:02:51]}  Nf6 {[%clk 0:02:59]} 5. Nc3 {[%clk 0:02:51]}  Nc6 {[%clk 0:02:59]} 6. Nf3 {[%clk 0:02:51]}  Be6 {[%clk 0:02:59]} 7. c5 {[%clk 0:02:38]}  g6 {[%clk 0:02:59]} 8. h3 {[%clk 0:02:37]}  Bg7 {[%clk 0:02:59]} 9. Bf4 {[%clk 0:02:36]}  Ne4 {[%clk 0:02:52]} 10. Be2 {[%clk 0:02:25]}  Qa5 {[%clk 0:02:45]} 11. Rc1 {[%clk 0:02:21]}  Bf5 {[%clk 0:02:16]} 12. O-O {[%clk 0:02:19]}  Nxc3 {[%clk 0:02:11]} 13. bxc3 {[%clk 0:02:18]}  O-O {[%clk 0:02:07]} 14. Qb3 {[%clk 0:02:15]}  b6 {[%clk 0:01:49]} 15. Qb5 {[%clk 0:01:56]}  Qxb5 {[%clk 0:01:40]} 16. Bxb5 {[%clk 0:01:57]}  Na5 {[%clk 0:01:40]} 17. Rfe1 {[%clk 0:01:30]}  a6 {[%clk 0:01:35]} 18. Bf1 {[%clk 0:01:13]}  bxc5 {[%clk 0:01:32]} 19. Rxe7 {[%clk 0:01:07]}  Rfc8 {[%clk 0:01:20]} 20. Rc7 {[%clk 0:00:58]}  c4 {[%clk 0:01:05]} 21. Re1 {[%clk 0:00:51]}  Rxc7 {[%clk 0:01:05]} 22. Bxc7 {[%clk 0:00:51]}  Nc6 {[%clk 0:01:06]} 23. g4 {[%clk 0:00:40]}  Bd7 {[%clk 0:00:55]} 24. Rb1 {[%clk 0:00:37]}  h5 {[%clk 0:00:45]} 25. gxh5 {[%clk 0:00:33]}  gxh5 {[%clk 0:00:46]} 26. Rb6 {[%clk 0:00:21]}  a5 {[%clk 0:00:38]} 27. Ne5 {[%clk 0:00:08]}  Nxe5 {[%clk 0:00:30]} 28. Bxe5 {[%clk 0:00:09]}  Be6 {[%clk 0:00:28]} 29. Be2 {[%clk 0:00:07]}  Bh6 {[%clk 0:00:24]} 30. Bxh5 {[%clk 0:00:05]}  Bd2 {[%clk 0:00:24]} 31. f4 {[%clk 0:00:02]}  Bxc3 {[%clk 0:00:20]} 32. Rb7 {[%clk 0:00:02]}  Rf8 {[%clk 0:00:16]} 33. Kf2 {[%clk 0:00:01]}  Bb4 {[%clk 0:00:14]} 34. Rc7 {[%clk 0:00:00]}  Bf5 {[%clk 0:00:13]} 0-1

[Event "January 2 Late 2024"]
[Site "https://www.chess.com"]
[Date "2024.01.02"]
[Round "4"]
[White "TheCavemanChess"]
[Black "Garrido, Denis"]
[Result "1-0"]
[Board "91"]
[TimeControl "180+1"]
[BlackFideId "601217"]
[WhiteElo "2670"]
[BlackElo "2417"]
[BlackTeam "FRA"]
[WhiteClock "0:01:28"]
[BlackClock "0:00:07"]

1. d4 {[%clk 0:03:00]}  Nf6 {[%clk 0:02:57]} 2. c4 {[%clk 0:03:01]}  c5 {[%clk 0:02:57]} 3. d5 {[%clk 0:03:01]}  d6 {[%clk 0:02:57]} 4. Nc3 {[%clk 0:02:59]}  g6 {[%clk 0:02:57]} 5. e4 {[%clk 0:03:00]}  Bg7 {[%clk 0:02:57]} 6. h3 {[%clk 0:02:58]}  O-O {[%clk 0:02:57]} 7. Nf3 {[%clk 0:02:59]}  Na6 {[%clk 0:02:56]} 8. Be2 {[%clk 0:02:58]}  Nc7 {[%clk 0:02:55]} 9. O-O {[%clk 0:02:58]}  e6 {[%clk 0:02:55]} 10. a4 {[%clk 0:02:57]}  exd5 {[%clk 0:02:55]} 11. cxd5 {[%clk 0:02:57]}  Re8 {[%clk 0:02:54]} 12. Nd2 {[%clk 0:02:57]}  b6 {[%clk 0:02:51]} 13. Re1 {[%clk 0:02:57]}  Ba6 {[%clk 0:02:43]} 14. Bxa6 {[%clk 0:02:55]}  Nxa6 {[%clk 0:02:43]} 15. Nc4 {[%clk 0:02:56]}  Nb4 {[%clk 0:02:40]} 16. Bf4 {[%clk 0:02:54]}  Bf8 {[%clk 0:02:40]} 17. f3 {[%clk 0:02:35]}  a6 {[%clk 0:02:39]} 18. Bh2 {[%clk 0:02:28]}  Ra7 {[%clk 0:02:03]} 19. Qd2 {[%clk 0:02:27]}  Rd7 {[%clk 0:01:50]} 20. g4 {[%clk 0:02:26]}  Bg7 {[%clk 0:01:44]} 21. Kh1 {[%clk 0:02:24]}  Qb8 {[%clk 0:01:40]} 22. e5 {[%clk 0:01:56]}  dxe5 {[%clk 0:01:34]} 23. Nxe5 {[%clk 0:01:57]}  Rxd5 {[%clk 0:00:48]} 24. Nxd5 {[%clk 0:01:55]}  Nfxd5 {[%clk 0:00:42]} 25. Nxg6 {[%clk 0:01:52]}  Rxe1+ {[%clk 0:00:38]} 26. Rxe1 {[%clk 0:01:50]}  Qa8 {[%clk 0:00:37]} 27. Nh4 {[%clk 0:01:39]}  c4 {[%clk 0:00:28]} 28. Qe2 {[%clk 0:01:34]}  Bf8 {[%clk 0:00:19]} 29. Qxc4 {[%clk 0:01:31]}  Ne7 {[%clk 0:00:07]} 30. Qxb4 {[%clk 0:01:28]} 1-0